Cogmind - Beta 11 @@@ ROGUE MODE // 2022.07.03 @ 10:01:09 Player: CreepyD Result: Destroyed by Y-45 Defender with Heavy Assault Rifle Performance ------------- Evolutions (2) 1000 Regions Visited (3) 600 Robots Destroyed (25) 125 Value Destroyed (585) 585 Prototype IDs (0) 0 Alien Tech Used (0) 0 Bonus (11) 11 TOTAL SCORE: 2321 Bonus ------- High Alert Combat Kills 11 Cogmind --------- Core Integrity 0/550 Matter 223/300 Energy 27/100 System Corruption 1% Temperature Cool (0) Movement Core (50) Location -8/Materials Parts ------- > --- POWER (2) -------- (None) > --- PROPULSION (4) --- (None) > --- UTILITY (3) ------ Seismic Detector Transport Network Coupler Improved Targeting Computer > --- WEAPON (2) ------- (None) > --- INVENTORY (5) ---- Armored Huge Wheel Improved Cooling System Shock Bomb Launcher Shock Bomb Launcher Peak State ------------ > --- POWER ------------ Light Ion Engine > --- PROPULSION ------- Armored Huge Wheel Armored Huge Wheel > --- UTILITY ---------- Improved Cooling System Transport Network Coupler Improved Targeting Computer > --- WEAPON ----------- Particle Cannon EMP Blaster > --- INVENTORY -------- Armored Huge Wheel EMP Blaster [Rating: 29] Favorites ----------- Power Ion Engine Engine Ion Engine Propulsion Compact Wheel Wheel Compact Wheel Utility Seismic Detector Device Seismic Detector Storage Small Storage Unit Processor Improved Targeting Computer Protection Hardened Light Armor Plating Weapon Particle Cannon Energy Gun EM Pulse Gun Energy Cannon Particle Cannon Ballistic Gun Assault Rifle Launcher EMP Blaster Build | -11 -10 -9 -8 ------- Run | Scr Mat Mat Mat Slots Evolved 4 | . . 2 2 Power 1 | . . . 1 Propulsion 2 | . . 2 . Utility 1 | . . . 1 Weapon . | . . . . Parts Attached 31 | 6 3 15 7 Power 5 | 1 . 4 . Engine 5 | 1 . 4 . Core . | . . . . Reactor . | . . . . Propulsion 9 | 2 . 5 2 Treads . | . . . . Leg . | . . . . Wheel 9 | 2 . 5 2 Hover . | . . . . Flight . | . . . . Utility 8 | 1 1 3 3 Device 4 | . 1 1 2 Storage 1 | 1 . . . Processor 2 | . . 1 1 Hackware . | . . . . Protection 1 | . . 1 . Artifact . | . . . . Weapon 9 | 2 2 3 2 Energy Gun 1 | 1 . . . Energy Cannon 4 | . 2 2 . Ballistic Gun 1 | 1 . . . Ballistic Cannon . | . . . . Launcher 3 | . . 1 2 Special Weapon . | . . . . Impact Weapon . | . . . . Slashing Weapon . | . . . . Piercing Weapon . | . . . . Special Melee Weapon . | . . . . Unidentified Prototypes . | . . . . Parts Lost 18 | . 1 9 8 Power 2 | . . 1 1 Propulsion 7 | . 1 4 2 Utility 3 | . . 2 1 Weapon 6 | . . 2 4 Highest Loss Streak 7 | . 1 7 5 To Critical Strikes . | . . . . Average Slot Usage (%) 69 | . 88 66 59 Engine 10 | . 14 10 5 Wheel 17 | . 21 17 15 Device 9 | . 9 9 8 Storage 3 | . 14 2 . Processor 5 | . . 1 18 Protection 1 | . . 2 . Energy Gun 2 | . 12 . . Energy Cannon 13 | . 2 20 5 Ballistic Gun 2 | . 12 . . Launcher 2 | . . . 7 Naked Turns . | . . . . Heaviest Build 19 | 14 19 19 13 Greatest Support 58 | 26 26 58 56 Greatest Overweight (x) 6 | . 1 6 2 Average Overweight (x) . | . . 1 . Largest Inventory Capacity 8 | 8 8 8 5 Average Capacity 6 | 7 8 5 5 Most Carried 5 | 2 4 5 5 Average Carried 3 | . . 4 3 Final Capacity 8 | 8 8 5 5 Final Carried 5 | . 4 2 5 Class Distribution -------------------- 76% | Mutant 23% | Scavenger-Mutant Dominant Class ---------------- Mutant | -10/Materials Mutant | -9/Materials Mutant | -8/Materials Resources | -11 -10 -9 -8 ----------- Run | Scr Mat Mat Mat Matter Collected 482 | 176 149 157 . Remotely . | . . . . Salvage Created 939 | 52 108 552 227 Parts 61 | 5 4 41 11 Haulers Intercepted 1 | . . 1 . Recyclers Shooed 2 | 1 . . 1 Parts Field Recycled . | . . . . Retrieved Matter . | . . . . Parts Self-Destructed . | . . . . Prevented . | . . . . Kills | -11 -10 -9 -8 ------- Run | Scr Mat Mat Mat Combat Hostiles Destroyed 16 | . 2 11 3 Guns 2 | . 2 . . Cannons 11 | . . 11 . AOE 3 | . . . 3 Classes Destroyed 8 | 1 2 5 . Worker 1 | . . 1 . Tunneler 2 | 2 . . . Hauler 1 | . . 1 . Recycler 2 | . . 2 . Watcher 3 | . 1 1 1 Swarmer 7 | . . 7 . Grunt 5 | . 2 1 2 Sentry 4 | . . 3 1 Best Kill Streak 4 | 1 2 4 2 Combat Bots Only 4 | . 1 4 2 Max Kills in Single Turn 2 | 1 1 1 2 Gunslinging . | . . . . Exploded 2 | . . . 2 Melee . | . . . . Uniques/NPCs Destroyed . | . . . . Combat | -11 -10 -9 -8 -------- Run | Scr Mat Mat Mat Damage Taken 2638 | . 190 912 1536 Core 738 | . 22 162 554 Absorbed by Shields . | . . . . Core Remaining (%) 83 | 100 91 59 . Volleys Fired 63 | 7 13 35 8 Largest 2 | 2 2 2 2 Hottest 136 | 60 60 136 101 Shots Fired 112 | 14 26 63 9 Gun 40 | 14 26 . . Cannon 64 | . . 63 1 Launcher 8 | . . . 8 Special . | . . . . Kinetic 20 | 7 13 . . Thermal 64 | . . 63 1 Explosive . | . . . . Electromagnetic 28 | 7 13 . 8 Robot Hit Streak 9 | 3 4 9 2 Robot Miss Streak 4 | 1 2 4 1 Penetration Max . | . . . . Secondary Targets . | . . . . Shots Hit Robots 58 | 8 15 31 4 Core Hits 38 | 2 4 17 15 Critical Kills . | . . . . Critical Parts Destroyed . | . . . . Critical Strikes . | . . . . Melee Attacks . | . . . . Impact . | . . . . Slashing . | . . . . Piercing . | . . . . Sneak Attacks . | . . . . Combat Hostiles . | . . . . Follow-up Attacks . | . . . . Damage Inflicted 1686 | 118 285 643 640 Guns 323 | 118 205 . . Cannons 636 | . . 636 . Explosions 708 | . 70 . 638 Melee . | . . . . Ramming 19 | . 10 7 2 Kinetic 126 | 51 75 . . Thermal 636 | . . 636 . Explosive . | . . . . Electromagnetic 905 | 67 200 . 638 Impact . | . . . . Slashing . | . . . . Piercing . | . . . . Highest Corruption 1 | . . . 1 Average Corruption 1 | . . . 1 Corruption Purged . | . . . . Corruption Blocked . | . . . . Effects 2 | . . . 2 Matter Fused 1 | . . . 1 Data Loss (major) 1 | . . . 1 Overload Shots . | . . . . Overflow Damage 2 | . . 2 . Projectiles 2 | . . 2 . Explosions . | . . . . Melee . | . . . . Knockbacks . | . . . . Impact . | . . . . Kinetic . | . . . . Secondary . | . . . . Self-Inflicted Damage 17 | . 5 3 9 Shots 1 | . . . 1 Rammed 8 | . 1 4 3 Targets Rammed 8 | . 1 4 3 Kicked . | . . . . Crushed . | . . . . Highest Temperature 351 | . 74 351 45 Average Temperature 120 | . 40 138 27 Received Heat Transfer 1113 | . 96 162 855 Effects 8 | . . 8 . Energy Bleed 1 | . . 1 . Interference 6 | . . 6 . Matter Decay 1 | . . 1 . Siege Activations . | . . . . Robots Corrupted . | . . . . Combat Hostiles . | . . . . Parts Fried 2 | . 2 . . Impact Corruptions . | . . . . Robots Melted . | . . . . Combat Hostiles . | . . . . Parts Melted . | . . . . Heat Transferred 1147 | . . 1147 . Parts Sabotaged . | . . . . Parts Stolen . | . . . . Parts Stripped . | . . . . Power Chain Reactions 1 | . 1 . . Missiles Intercepted . | . . . . Alert | -11 -10 -9 -8 ------- Run | Scr Mat Mat Mat Peak Influence 439 | 10 150 256 439 Initial 100 | . 6 63 100 Average 136 | 2 77 135 225 Maximum Alert Level 2 | . . 1 2 Low Security (%) 80 | 100 100 81 56 Level 1 14 | . . 18 21 Level 2 4 | . . . 21 Level 3 . | . . . . Level 4 . | . . . . Level 5 . | . . . . High Security . | . . . . Max Security . | . . . . Squads Dispatched 5 | . 2 1 2 Investigation 2 | . 1 1 . Extermination . | . . . . Reinforcement 3 | . 1 . 2 Assault . | . . . . Garrison . | . . . . Intercept . | . . . . Searches Triggered . | . . . . Construction Impeded 1 | . . . 1 Haulers Reinforced . | . . . . Active Scanning Responses . | . . . . Cargo Convoy Interrupts . | . . . . Stealth | -11 -10 -9 -8 --------- Run | Scr Mat Mat Mat Distress Signals 4 | . 1 1 2 Communications Jammed . | . . . . Distress Signals . | . . . . Times Spotted 55 | . 8 20 27 Peak Tracking Total 15 | . 4 7 15 Tactical Retreats 5 | . . 1 4 Traps | -11 -10 -9 -8 ------- Run | Scr Mat Mat Mat Traps Triggered 1 | . 1 . . Indirectly . | . . . . Trap Hack Attempts . | . . . . Triggered . | . . . . Disarmed . | . . . . Reprogrammed . | . . . . Reused . | . . . . Traps Extracted . | . . . . Installed . | . . . . Triggered . | . . . . Machines | -11 -10 -9 -8 ---------- Run | Scr Mat Mat Mat Machines Disabled 5 | . 2 . 3 Max in Single Turn 1 | . 1 . 1 Machines Sabotaged . | . . . . Garrisons Compromised . | . . . . Overloaded Fab Kills . | . . . . Hacking | -11 -10 -9 -8 --------- Run | Scr Mat Mat Mat Machines Accessed 5 | . 2 2 1 Terminals 4 | . 2 1 1 Fabricators . | . . . . Repair Stations . | . . . . Recycling Units 1 | . . 1 . Scanalyzers . | . . . . Garrison Access . | . . . . Total Hacks 14 | . 6 5 3 Successful 2 | . 1 . 1 Failed 12 | . 5 5 2 Catastrophic 2 | . 1 1 . Database Lockouts . | . . . . Manual . | . . . . Terminals 12 | . 6 3 3 Fabricators . | . . . . Repair Stations . | . . . . Recycling Units 2 | . . 2 . Scanalyzers . | . . . . Garrison Access . | . . . . Terminal Hacks 2 | . 1 . 1 Branch Access Points 1 | . . . 1 Security Status 1 | . 1 . . Fabricator Hacks . | . . . . Repair Station Hacks . | . . . . Recycling Unit Hacks . | . . . . Scanalyzer . | . . . . Garrison Access Hacks . | . . . . Unauthorized Hacks . | . . . . Terminals . | . . . . Fabricators . | . . . . Repair Stations . | . . . . Recycling Units . | . . . . Scanalyzers . | . . . . Garrison Access . | . . . . Data Cores Recovered . | . . . . Used . | . . . . Hacking Detections 5 | . 2 2 1 Full Trace Events 1 | . . 1 . Feedback Events . | . . . . Feedback Blocked . | . . . . Robot Schematics Acquired . | . . . . Robots Built . | . . . . Authchips . | . . . . Time . | . . . . Total Robot Build Rating . | . . . . Part Schematics Acquired . | . . . . Parts Built . | . . . . Authchips . | . . . . Time . | . . . . Total Part Build Rating . | . . . . Parts Repaired . | . . . . Time . | . . . . Parts Recycled . | . . . . Recycled Matter . | . . . . Retrieved Matter . | . . . . Retrieved Components . | . . . . Parts Scanalyzed . | . . . . Part Schematics Acquired . | . . . . Parts Damaged . | . . . . Bothacking | -11 -10 -9 -8 ------------ Run | Scr Mat Mat Mat Used RIF Installer . | . . . . Robots Hacked . | . . . . Non-combat . | . . . . Combat . | . . . . Robot Hacks Applied . | . . . . Relay Couplers Released . | . . . . Fabnet Peak Effective % . | . . . . Robots Rewired . | . . . . Allies Hacked . | . . . . Hacks Repelled . | . . . . Allies | -11 -10 -9 -8 -------- Run | Scr Mat Mat Mat Total Allies . | . . . . Largest Group . | . . . . Highest-Rated Group . | . . . . Highest-Rated Ally . | . . . . Total Orders . | . . . . Ally Attacks . | . . . . Total Damage . | . . . . Kills . | . . . . Allies Corrupted . | . . . . Allies Melted . | . . . . Intel | -11 -10 -9 -8 ------- Run | Scr Mat Mat Mat Robot Analysis Total . | . . . . Derelict Logs Recovered . | . . . . Drone Launches . | . . . . Drone Recoveries . | . . . . Exploration | -11 -10 -9 -8 ------------- Run | Scr Mat Mat Mat Turns Passed 1058 | 77 187 555 239 Spaces Moved 639 | 51 139 267 182 Core 89 | 4 . 65 20 Treads . | . . . . Legs . | . . . . Wheels 550 | 47 139 202 162 Hover . | . . . . Flight . | . . . . Fastest Speed 50 | 50 90 86 50 Average Speed 112 | 86 92 139 96 Slowest Speed 350 | 90 95 350 150 Overloaded Moves . | . . . . Propulsion Burnouts . | . . . . Robots Hopped . | . . . . Cave-ins Triggered . | . . . . Exploration Rate (%) 21 | 4 23 31 27 Regions Visited 3 Branch Regions . Pre-discovered Areas . | . . . . Known Exits Taken . | . . . . Unknown Exits Taken 3 | 1 1 1 . Scrap Searched . | . . . . Spaces Dug . | . . . . Terrain Destroyed 5 | . 5 . . Melee . | . . . . Projectile . | . . . . AOE 5 | . 5 . . Terrain Rammed . | . . . . Walls Destroyed . | . . . . Machines Disabled . | . . . . Actions | -11 -10 -9 -8 --------- Run | Scr Mat Mat Mat Total 864 | 69 172 386 237 Wait 86 | . 8 53 25 Move 637 | 50 139 266 182 Hop . | . . . . Pick Up 31 | 6 7 9 9 Fast Attach 2 | . . 2 . Attach 25 | 6 3 9 7 Detach . | . . . . Swap 4 | . . 4 . Drop 9 | . 2 4 3 Fire 63 | 7 13 35 8 Melee . | . . . . Ram 7 | . . 4 3 Kick . | . . . . Crush . | . . . . Escape Stasis . | . . . . Rewire . | . . . . Trap . | . . . . Miscellaneous . | . . . . Route ------- -11/Scrapyard -10/Materials -9/Materials -8/Materials History --------- Turn | Location | Event 10 | -11/Scrapyard | Discovered new exit (range 16) 78 | -11/Scrapyard | Entered Materials 235 | -10/Materials | Discovered new exit (range 10) 265 | -10/Materials | Entered another Materials area 265 | -9/Materials | Evolved 2 slots: Propulsion x2 306 | -9/Materials | Build established: Mutant 798 | -9/Materials | Lost 7 parts (1p2n2u2w) 805 | -9/Materials | Discovered new exit (range 16) 820 | -9/Materials | Entered another Materials area 820 | -8/Materials | Evolved 2 slots: Power x1, Utility x1 993 | -8/Materials | Lost 3 parts (1p2w) 1033 | -8/Materials | Core integrity fell below 50% 1055 | -8/Materials | Core integrity fell below 20% 1059 | -8/Materials | Destroyed by Y-45 Defender with Heavy Assault Rifle Last Messages --------------- 01003_ EMP Blaster destroyed. 01018_ Critical hit (Burn: +37). 01020_ Arm. Huge Wheel destroyed. 01022_ Acquired Shock Bomb Launcher. 01023_ Arm. Huge Wheel destroyed. 01024_ System corrupted: Substantial component data lost. 01024_ W-25 Informer destroyed. 01024_ Door malfunctions. 01024_ Repair Station disabled. 01032_ Imp. Cooling System destroyed. 01034_ Y-45 Defender destroyed. 01041_ Critical hit (Burn: +37). 01047_ Y-45 Defender IFF system glitched. 01048_ Shock Bomb Launcher destroyed. 01049_ G-47 Trooper IFF system glitched. 01050_ Acquired Seismic Detector. 01053_ Acquired Shock Bomb Launcher. 01053_ Critical hit (Burn: +37). 01055_ Acquired Corrupted Shock Bomb Launcher. 01058_ Y-45 Defender destroyed. Map ----- +----------------------------------------------------+ | | | | | | | | | | | | | | | | | ?????????????????????????????????????? | | ?????????????????????????????????????? | | ?????????????????????????????????????? | | ?????????????????????????????????????? | | ?????????????????????????????????????? | | ?????????????????????????????????????? | | ?????????????????????????????????????? | | ?????????????????????????????????????? | | ???????????????#######???????????????? | | ???????????##### = #??????????????? | | ???????????# ##| #??????????????? | | ???????????# ## #??????????????? | | ???????????+ ## """ #?????#######??? | | ???????????# ## """ ??????# #### | | ??????????## ## ""????????# | | ??????????# ##+########### | | ??????????# | | ??????????# @ m a | | ??????????# Y ############### | | ????????####g#####???????????# " | | ????????# *g![" #???????????# T | | ????????# !!=%%= #?????????? + " | | ????????# [==*! ##????????" # | | ????????# =! #??????? + | | ????????#] ] ] ##??????###?# ##### | | ????????# ] #???????????##+##???? | | ????????# ]] #???????????????????? | | ????????# #???????????????????? | | ????????# = #???????????????????? | | ????????##########???????????????????? | | ?????????????????????????????????????? | | ?????????????????????????????????????? | | ?????????????????????????????????????? | | ?????????????????????????????????????? | | ?????????????????????????????????????? | | ?????????????????????????????????????? | | ?????????????????????????????????????? | | ?????????????????????????????????????? | | ?????????????????????????????????????? | | ?????????????????????????????????????? | | ?????????????????????????????????????? | | ?????????????????????????????????????? | +----------------------------------------------------+ Best States ------------- Heat Dissipation 58 Energy Generation 10 Energy Capacity 250 Matter Stores 300 Matter Capacity 300 Sight Range 16 Terrain Scan Density 10 Armor Coverage 150 Evasion (%) 42 Targeting Accuracy 6 Item Schematics ----------------- None Robot Schematics ------------------ None Fabricated ------------ Nothing Alien Tech Used ----------------- None Achievements -------------- None Challenges ------------ None Game ------ Seed FieldEtherialThruster Manual? 0 Play Time 00:20:29 Cumulative 144.1 hours Start 2022.07.02 @ 15:47:22 End 2022.07.03 @ 10:01:09 Sessions 3 Manual Loads 0 Difficulty Rogue Special Mode None Game No. 136 Rogue 135 Adventurer 1 Explorer 0 Win Type - Total 1 Types 1/0/0/0/0/0/0/0/0 Lore% 46 Gallery% 66 Achievement% 48 Wizard Run 0 Options --------- ASCII 0 Keyboard 0 Movement Numpad Keybinds 0 Fullscreen 2 Font 18/SmallcapsGlow Map View 76x50 Tactical HUD 1 Map Filters NONE Filters NONE Steam X RUN: fe124182-6519-451f-9d17-caa7a9ca99e9